{"text_format":"1","workbook":"xlsx","n_sheets":4,"sheets":["Sheet1","Sheet3","Sheet4","Sheet1 (2)"],"not_rendered":{"charts":0,"images":0,"macros":1,"external_links":0,"defined_names":2,"comments":2,"pivot_tables":0},"unopened":[],"bounds":{"document_bytes":16777216,"sheet_cells":100000,"rows_first":2000,"rows_last":500,"rows_between":2000,"halvings":0,"cell_chars":16384,"cell_head_chars":4096},"cells_cut":0,"cells_raw":0,"read":"whole","date_system":"1900"}

{"sheet":"Sheet1","index":0,"n_rows":1,"n_cols":1,"rows_kept":1,"cut":false,"hidden":false,"merged":[]}
[18]

{"sheet":"Sheet3","index":1,"n_rows":39,"n_cols":10,"rows_kept":39,"cut":false,"hidden":false,"merged":[]}
[]
[]
[]
[]
[]
[null,null,null,null,"Selektiraj ćeliju ispod i pritisni ALT+F8"]
[null,null,null,null,"Klikni na gumb RUN"]
[null,null,null,null,"Vrijednost 7 se pribrojila u ćeliju A1 na Sheet1 itd redom sa svakog Sheeta"]
[]
[null,null,null,null,7]
[]
[]
[]
[]
[]
[]
[]
[]
[]
[]
[]
[null,null,null,null,null,null,null,null,null,11]
[]
[]
[]
[]
[]
[]
[]
[null,"Za Excel 2003"]
[null,"Kopiraj VBA macro u Module tvoje Workbook"]
[null,"http://www.ic.ims.hr/office/excel2003/makronaredbe/macro2.html"]
[]
[]
[]
[]
[]
[null,"Za Excel 2013"]
[null,"http://www.ic-ims.com/excel-2013/razno/pokretanje-makronaredbe-preko-gumba.html"]

{"sheet":"Sheet4","index":2,"n_rows":25,"n_cols":11,"rows_kept":25,"cut":false,"hidden":false,"merged":[]}
[]
[]
[]
[]
[]
[]
[]
[]
[]
[]
[]
[null,null,null,101]
[]
[]
[]
[]
[]
[]
[]
[]
[]
[]
[]
[]
[null,null,null,null,null,null,null,null,null,null,77]

{"sheet":"Sheet1 (2)","index":3,"n_rows":36,"n_cols":12,"rows_kept":36,"cut":false,"hidden":false,"merged":[[0,0,0,1]]}
["Lista",null,null,null,"podaci=","B1:B4"]
["J2",{"$f":"IF(ISERROR(INDIRECT(A2)),\"\",INDIRECT(A2))","v":2},null,null,"SUM",{"$f":"SUM(INDIRECT(podaci))","v":18},null,null,null,2]
["L7",{"$f":"IF(ISERROR(INDIRECT(A3)),\"\",INDIRECT(A3))","v":7}]
["H16",9]
[null,""]
[null,""]
[null,"",null,null,null,null,null,null,null,null,null,7]
[null,""]
[null,""]
[null,""]
[null,""]
[null,""]
[null,""]
[null,""]
[null,""]
[null,"",null,null,null,null,null,9]
[null,""]
[null,""]
[null,""]
[null,""]
[null,""]
[null,""]
[null,"",null,null,null,null,null,"Imenovanje range u excelu"]
[null,"",null,null,null,null,null,"http://www.ic.ims.hr/office/excel2003/razno/imenovanje.html"]
[null,""]
[null,""]
[null,null,null,null,null,null,null,"Ćelije B2:B26, F2 i Sheet1 je locked bez šifre"]
[null,null,null,null,null,null,null,"otključaj Sheet da možeš raditi sa formulama (Review => Unprotect Sheet)"]
["U stupcu A je formula za Excel 2007 i noviji",null,null,null,null,null,null,"http://www.ic-ims.com/excel-2013/excel-2013-40.html"]
[" =IFERROR(INDIRECT(A2);\"\")",null,null,null,null,null,null,"http://www.ic.ims.hr/office/excel2003/excel36.html"]
[]
[]
[]
["Ovo je za Excel 2003 i stariji"]
[" =IF(ISERROR(INDIRECT(A2));\"\";INDIRECT(A2))",null,null,null,null,null,null,"Funkcija INDIRECT u Excelu"]
[null,null,null,null,null,null,null,"http://www.ic.ims.hr/office/excel2003/funkcije/pretrazivanje/indirect.html"]